bitfinex/quotes_ETHUSD_20230111
["timestamp","ask_amount","ask_price","bid_price","bid_amount"]
[1673458825306,2.81980528,1329.1,1329.0,1.86688516]
[1673458827947,2.81980528,1329.1,1328.9,17.7789031]
[1673458828319,1.12750011,1329.0,1328.9,1.60713023]
[1673458828528,1.12750011,1329.0,1328.9,3.38009523]
[1673458828946,8.65195011,1329.0,1328.9,3.38009523]
[1673458829195,1.12750011,1329.0,1328.9,3.38009523]
[1673458829961,10.34795011,1329.0,1328.9,3.38009523]
[1673458830845,22.50567968,1329.0,1328.9,3.38009523]
[1673458831087,28.90262957,1329.0,1328.9,1.51313163]
[1673458832684,21.37817957,1329.0,1328.9,1.51313163]
[1673458832989,22.50605676,1329.0,1328.9,1.51313163]
[1673458833515,30.03050676,1329.0,1328.9,1.51313163]
[1673458833898,31.72250676,1329.0,1328.9,1.51313163]
[1673458835000,30.59462957,1329.0,1328.9,1.51313163]
[1673458836030,30.59462957,1329.0,1328.9,1.51074854]
[1673458836405,31.7219875,1329.0,1328.9,1.51074854]
[1673458837293,30.02968233,1329.0,1328.9,1.51074854]
[1673458838554,30.03168233,1329.0,1328.9,1.51074854]
[1673458838870,30.02968233,1329.0,1328.9,1.51074854]
[1673458839716,22.50523233,1329.0,1328.9,1.51074854]
[1673458840084,30.02968233,1329.0,1328.9,1.51074854]
[1673458844289,22.50523233,1329.0,1328.9,1.51074854]
[1673458844511,5.76033233,1329.0,1328.9,1.51074854]
[1673458844827,2.81935793,1329.0,1328.9,1.51074854]
[1673458845245,10.34380793,1329.0,1328.9,1.51074854]
[1673458845673,2.81935793,1329.0,1328.9,1.51074854]
[1673458847485,10.34380793,1329.0,1328.9,1.51074854]
[1673458848526,17.86825793,1329.0,1328.9,1.51074854]
[1673458848753,20.63974624,1329.0,1328.9,1.51074854]
[1673458849331,13.11529624,1329.0,1328.9,1.51074854]
[1673458850022,11.98793831,1329.0,1328.9,1.51074854]
[1673458850315,13.11529624,1329.0,1328.9,1.51074854]
[1673458850929,10.34380793,1329.0,1328.9,1.51074854]
[1673458851589,2.81935793,1329.0,1328.9,1.51074854]
[1673458852416,10.34380793,1329.0,1328.9,1.51074854]
[1673458852761,9.21645,1329.0,1328.9,1.51074854]
[1673458853286,1.692,1329.0,1328.9,1.51074854]
[1673458854290,1.692,1329.0,1328.9,3.37771455]
[1673458855298,1.692,1329.0,1328.9,1.51074854]
[1673458855608,9.21645,1329.0,1328.9,1.51074854]
[1673458855788,10.34380793,1329.0,1328.9,1.51074854]
[1673458855988,9.21645,1329.0,1328.9,1.51074854]
[1673458856199,16.7409,1329.0,1328.9,1.51074854]
[1673458856428,17.86829213,1329.0,1328.9,1.51074854]
[1673458856634,16.7409,1329.0,1328.9,1.51074854]
[1673458856816,17.86828216,1329.0,1328.9,1.51074854]
[1673458857025,20.26481873,1329.0,1328.9,1.51074854]
[1673458857291,21.39232307,1329.0,1328.9,1.51074854]
[1673458857598,20.26481873,1329.0,1328.9,1.51074854]
[1673458857760,21.39234256,1329.0,1328.9,1.51074854]
[1673458857976,20.26481873,1329.0,1328.9,1.51074854]
[1673458858228,21.39233235,1329.0,1328.9,1.51074854]
[1673458858437,20.26481873,1329.0,1328.9,1.51074854]
[1673458858650,21.39233493,1329.0,1328.9,1.51074854]
[1673458858843,21.39233495,1329.0,1328.9,1.51074854]
[1673458859177,21.39233653,1329.0,1328.9,1.51074854]
[1673458859343,20.26481873,1329.0,1328.9,1.51074854]
[1673458859549,18.57281873,1329.0,1328.9,1.51074854]
[1673458859803,19.70043918,1329.0,1328.9,1.51074854]
[1673458860019,18.57281873,1329.0,1328.9,1.51074854]
[1673458860389,19.70045121,1329.0,1328.9,1.51074854]
[1673458860598,18.57281873,1329.0,1328.9,1.51074854]
[1673458860808,19.70045107,1329.0,1328.9,1.51074854]
[1673458861166,18.57281873,1329.0,1328.9,1.51074854]
[1673458861352,19.70050035,1329.0,1328.9,1.51074854]
[1673458861559,18.57281873,1329.0,1328.9,1.51074854]
[1673458861810,12.1760589,1329.0,1328.9,1.51074854]
[1673458861981,11.04836873,1329.0,1328.9,1.51074854]
[1673458862338,10.97430268,1329.1,1328.9,3.37772912]
[1673458862506,10.34390268,1329.1,1328.9,1.51074854]
[1673458863064,7.52392,1329.1,1329.0,1.8668707]
[1673458863280,8.65162503,1329.1,1329.0,1.8668707]
[1673458863454,7.52392,1329.1,1328.9,2.72705001]
[1673458863800,7.52392,1329.1,1328.9,2.63305141]
[1673458863994,8.6514919,1329.1,1328.9,2.63305141]
[1673458864207,7.52392,1329.1,1328.9,2.63305141]
[1673458864386,8.65148178,1329.1,1328.9,2.63305141]
[1673458864596,8.65148173,1329.1,1328.9,2.63305141]
[1673458864824,7.52392,1329.1,1328.9,2.63305141]
[1673458865062,36.72211091,1329.2,1329.1,1.12007865]
[1673458865234,26.11862091,1329.2,1329.1,1.12007865]
[1673458865452,24.42631574,1329.2,1329.1,1.1175304]
[1673458866073,26.11862091,1329.2,1329.1,1.1175304]
[1673458872651,3.54782091,1329.2,1329.1,1.1175304]
[1673458872790,16.33838574,1329.2,1329.1,1.1175304]
[1673458873157,23.86219574,1329.2,1329.1,1.1175304]
[1673458874071,23.86419574,1329.2,1329.1,1.1175304]
[1673458874402,27.64856916,1329.2,1329.1,1.1175304]
[1673458874612,23.86219574,1329.2,1329.1,1.1175304]
[1673458874828,22.73467088,1329.2,1329.1,1.1175304]
[1673458876154,7.68691088,1329.2,1329.1,1.1175304]
[1673458877570,0.16359088,1329.2,1329.1,1.1175304]
[1673458877734,0.16359088,1329.2,1329.1,8.6414104]
[1673458877944,0.16359088,1329.2,1329.1,8.735409]
[1673458878170,0.16359088,1329.2,1329.1,1.211529]
[1673458878390,0.16359088,1329.2,1329.1,1.1175304]
[1673458878780,0.16359088,1329.2,1329.1,29.46141306]
[1673458878781,1e-08,1329.2,1329.1,29.46141306]
[1673458879156,1e-08,1329.2,1329.1,32.35540067]
[1673458879303,1e-08,1329.2,1329.1,33.47770354]
[1673458879516,1e-08,1329.2,1329.1,32.35540067]
[1673458879722,1e-08,1329.2,1329.1,24.83152067]
[1673458880183,1e-08,1329.2,1329.1,22.03153166]
[1673458880937,1e-08,1329.2,1329.1,20.16501497]
[1673458882594,1e-08,1329.2,1329.1,5.11725497]
[1673458884883,7.52332001,1329.2,1329.1,5.11725497]
[1673458885562,1e-08,1329.2,1329.1,5.11725497]
[1673458886275,1e-08,1329.2,1329.1,12.64113497]
[1673458886486,1e-08,1329.2,1329.1,5.11725497]
[1673458887770,7.52332001,1329.2,1329.1,5.11725497]
[1673458889031,0.00200001,1329.2,1329.1,5.11690549]
[1673458889241,1e-08,1329.2,1329.1,5.11725497]
[1673458889676,1e-08,1329.2,1329.1,5.11690549]
[1673458889846,1e-08,1329.2,1329.1,5.11725497]
[1673458892504,1e-08,1329.2,1329.1,34.80794015]
[1673458892822,1e-08,1329.2,1329.1,33.88146264]
[1673458892976,1e-08,1329.2,1329.1,21.10503203]
[1673458893187,1e-08,1329.2,1329.1,29.7512149]
[1673458893396,1e-08,1329.2,1329.1,14.7034549]
[1673458893731,1e-08,1329.2,1329.1,13.58115203]
[1673458894141,1e-08,1329.2,1329.1,9.78349139]
[1673458894347,1e-08,1329.2,1329.1,6.98374954]
[1673458894602,1e-08,1329.2,1329.1,14.50762954]
[1673458895342,1e-08,1329.2,1329.1,13.39009914]
[1673458895505,1e-08,1329.2,1329.1,5.86621914]
[1673458895714,1e-08,1329.2,1329.1,3.99972457]
[1673458895973,22.56996001,1329.2,1329.0,22.89133334]
[1673458896156,15.04664001,1329.2,1329.0,20.09137024]
[1673458896373,7.52332001,1329.2,1329.0,20.09137024]
[1673458896708,15.04664001,1329.2,1329.0,20.09137024]
[1673458897112,22.56996001,1329.2,1329.0,20.09137024]
[1673458897284,15.04664001,1329.2,1329.0,20.09137024]
[1673458897653,22.56996001,1329.2,1329.0,20.09137024]
[1673458897829,15.04664001,1329.2,1329.0,20.09137024]
[1673458898248,22.56996001,1329.2,1329.0,20.09137024]
[1673458898472,15.04664001,1329.2,1329.0,20.09137024]
[1673458898859,17.86647004,1329.2,1329.0,20.09137024]
[1673458899073,15.04664001,1329.2,1329.0,20.09137024]
[1673458899284,16.17416487,1329.2,1329.0,20.09137024]
[1673458899914,23.69748487,1329.2,1329.0,20.09137024]
[1673458900357,16.17416487,1329.2,1329.0,20.09137024]
[1673458900987,15.04664001,1329.2,1329.0,20.09137024]
[1673458901202,15.04664001,1329.2,1329.0,24.18089557]
[1673458901457,15.04664001,1329.2,1329.0,26.98111717]
[1673458902162,16.17416487,1329.2,1329.0,26.98111717]
[1673458902361,16.17416487,1329.2,1329.0,22.89159184]
[1673458902570,16.17416487,1329.2,1329.0,20.09137024]
[1673458903195,16.17416487,1329.2,1329.0,22.89159184]
[1673458903406,16.17416487,1329.2,1329.0,20.09137024]
[1673458904247,16.17416487,1329.2,1329.0,22.88877105]
[1673458904460,16.17416487,1329.2,1329.0,20.08854945]
[1673458905209,27.46767219,1329.2,1329.0,20.08854945]
[1673458907186,29.15997736,1329.2,1329.0,20.08854945]
[1673458910227,29.72437736,1329.2,1329.0,20.08854945]
[1673458910438,27.46767219,1329.2,1329.0,20.08854945]
[1673458911302,29.15997736,1329.2,1329.0,20.08854945]
[1673458911517,27.46767219,1329.2,1329.0,20.08854945]
[1673458911841,29.15997736,1329.2,1329.0,20.08854945]
[1673458913284,29.16000798,1329.2,1329.0,20.08854945]
[1673458915595,27.46770281,1329.2,1329.0,20.08854945]
[1673458915800,29.16000798,1329.2,1329.0,20.08854945]
[1673458916179,1.12694842,1329.1,1329.0,20.08854945]
[1673458916330,13.92763006,1329.1,1329.0,20.08854945]
[1673458916703,22.57844,1329.1,1329.0,20.08854945]
[1673458917617,21.45151006,1329.1,1329.0,20.08854945]
[1673458917792,22.57844,1329.1,1329.0,20.08854945]
[1673458919515,21.45151006,1329.1,1329.0,20.08854945]
[1673458920012,22.57844,1329.1,1329.0,20.08854945]
[1673458920346,7.53068,1329.1,1329.0,20.08854945]
[1673458920773,15.05456,1329.1,1329.0,20.08854945]
[1673458920988,6.40375006,1329.1,1329.0,20.08854945]
[1673458921371,6.40375006,1329.1,1329.0,23.31307141]
[1673458922043,13.92763006,1329.1,1329.0,23.31307141]
[1673458922210,6.40375006,1329.1,1329.0,23.31307141]
[1673458923055,4.41248351,1329.1,1329.0,25.17989229]
[1673458924255,23.76389995,1329.2,1329.0,25.17989229]
[1673458924423,23.69789995,1329.2,1329.0,23.31307141]
[1673458925197,25.39020512,1329.2,1329.0,23.31307141]
[1673458927526,25.39020512,1329.2,1329.0,20.08854945]
[1673458928349,4.12692994,1329.1,1329.0,20.08854945]
[1673458928565,26.69856994,1329.1,1329.0,20.08854945]
[1673458928876,25.57164,1329.1,1329.0,20.08854945]
[1673458929410,22.57164,1329.1,1329.0,20.08854945]
[1673458929781,23.69856994,1329.1,1329.0,20.08854945]
[1673458935705,25.39087511,1329.1,1329.0,20.08854945]
[1673458937569,23.69856994,1329.1,1329.0,21.95544886]
[1673458938412,25.39087511,1329.1,1329.0,20.08854945]
[1673458938819,25.39087511,1329.1,1329.0,21.95544095]
[1673458938820,23.69856994,1329.1,1329.0,21.95544095]
[1673458939452,16.17468994,1329.1,1329.0,21.95544095]
[1673458941480,23.69856994,1329.1,1329.0,21.95544095]
[1673458943164,25.39087511,1329.1,1329.0,21.95544095]
[1673458943376,25.39087511,1329.1,1329.0,20.08854945]
[1673458943796,25.39087511,1329.1,1329.0,20.085674]
[1673458944176,24.26394517,1329.1,1329.0,20.085674]
[1673458945345,25.39213726,1329.1,1329.0,20.085674]
[1673458945561,24.26394517,1329.1,1329.0,20.085674]
[1673458945982,35.46544475,1329.1,1329.0,20.085674]
[1673458946289,35.46544475,1329.1,1329.0,0.0939986]
[1673458946290,35.477426,1329.1,1329.0,0.0939986]
[1673458946531,35.477426,1329.1,1328.9,1.51074854]
[1673458946532,36.03108362,1329.1,1328.9,1.51074854]
[1673458946747,2.2568597,1329.0,1328.9,1.51074854]
[1673458946917,29.90079066,1329.0,1328.9,1.51074854]
[1673458947131,28.77286403,1329.0,1328.9,1.51074854]
[1673458947359,31.02952165,1329.0,1328.9,1.51074854]
[1673458948217,29.90080163,1329.0,1328.9,1.51074854]
[1673458948609,25.9581473,1329.0,1328.9,1.51074854]
[1673458950211,24.2656876,1329.0,1328.9,1.51074854]
[1673458950386,16.7412376,1329.0,1328.9,1.51074854]
[1673458950960,0.5644,1329.0,1328.9,3.37767305]
[1673458951108,0.5644,1329.0,1328.9,14.11377004]
[1673458951479,0.5644,1329.0,1328.9,9.48346031]
[1673458951671,3.4507973,1329.1,1328.9,17.00848031]
[1673458951844,3.3847973,1329.1,1328.9,15.1415558]
[1673458952050,10.9087473,1329.1,1328.9,4.40545881]
[1673458952265,9.2162876,1329.1,1328.9,1.51074854]
[1673458952793,10.9087473,1329.1,1328.9,1.51074854]
[1673458952993,10.9087473,1329.1,1328.9,6.17841266]
[1673458953207,10.9087473,1329.1,1328.9,4.40545881]
[1673458953417,3.3847973,1329.1,1328.9,4.31146021]
[1673458953644,3.3847973,1329.1,1328.9,9.03568854]
[1673458953893,3.3847973,1329.1,1328.9,11.93039881]
[1673458954097,3.3847973,1329.1,1328.9,4.40545881]
[1673458954278,3.3847973,1329.1,1328.9,1.51074854]
[1673458954909,1.6923376,1329.1,1328.9,1.51074854]
[1673458955126,3.3847973,1329.1,1328.9,1.51074854]
[1673458955420,10.9087373,1329.1,1328.9,1.51074854]
[1673458955643,10.9087373,1329.1,1328.9,3.37770772]
[1673458955835,1.1279376,1329.0,1328.9,1.51074854]
[1673458956093,26.0230373,1329.1,1328.9,3.37774685]
[1673458956256,31.10004498,1329.1,1328.9,1.51074854]
[1673458956724,1.1279376,1329.0,1328.9,1.51074854]
[1673458956936,1.12753562,1329.0,1328.9,1.51074854]
[1673458957098,26.02261716,1329.1,1328.9,3.37772845]
[1673458957307,25.95661716,1329.1,1328.9,1.51074854]
[1673458957881,29.51419154,1329.1,1328.9,1.51074854]
[1673458958199,21.98983154,1329.1,1328.9,1.51074854]
[1673458958818,21.99183154,1329.1,1328.9,1.51074854]
[1673458959013,21.98983154,1329.1,1328.9,1.51074854]
[1673458959452,29.51420154,1329.1,1328.9,1.51074854]
[1673458960681,28.38668408,1329.1,1328.9,1.51074854]
[1673458960886,1.12751318,1329.0,1328.9,1.51074854]
[1673458961104,17.3707397,1329.1,1328.9,1.51074854]
[1673458961357,8.65195796,1329.0,1328.9,1.51074854]
[1673458961562,15.0489,1329.0,1328.9,1.51074854]
[1673458961933,16.17642382,1329.0,1328.9,1.51074854]
[1673458962160,15.0489,1329.0,1328.9,1.51074854]
[1673458962399,16.17642389,1329.0,1328.9,1.51074854]
[1673458962563,15.0489,1329.0,1328.9,1.51074854]
[1673458962772,16.17641416,1329.0,1328.9,1.51074854]
[1673458962984,15.0489,1329.0,1328.9,1.51074854]
[1673458963193,16.17648933,1329.0,1328.9,1.51074854]
[1673458963405,15.0489,1329.0,1328.9,1.51074854]
[1673458963652,16.17650213,1329.0,1328.9,1.51074854]
[1673458963867,22.57335,1329.0,1328.9,1.51074854]
[1673458964078,23.70095129,1329.0,1328.9,1.51074854]
[1673458964399,23.70096662,1329.0,1328.9,1.51074854]
[1673458965816,23.70096662,1329.0,1328.9,1.5074086]
[1673458966573,22.57335,1329.0,1328.9,1.5074086]
[1673458966779,23.70097054,1329.0,1328.9,1.5074086]
[1673458967107,23.70094931,1329.0,1328.9,1.5074086]
[1673458967291,22.57335,1329.0,1328.9,1.5074086]
[1673458967706,23.70094939,1329.0,1328.9,1.5074086]
[1673458967936,22.57335,1329.0,1328.9,1.5074086]
[1673458968134,23.70094905,1329.0,1328.9,1.5074086]
[1673458968336,22.57335,1329.0,1328.9,1.5074086]
[1673458968908,23.70096612,1329.0,1328.9,1.5074086]
[1673458969090,23.70100824,1329.0,1328.9,1.5074086]
[1673458969297,23.70100556,1329.0,1328.9,3.37441775]
[1673458969493,22.57335,1329.0,1328.9,3.37441775]
[1673458969706,22.57335,1329.0,1328.9,1.5074086]
[1673458970065,22.57335,1329.0,1328.9,3.37440435]
[1673458970239,23.70099181,1329.0,1328.9,3.37440435]
[1673458970451,22.57335,1329.0,1328.9,3.37441616]
[1673458970650,23.70103958,1329.0,1328.9,3.37441616]
[1673458970859,22.57335,1329.0,1328.9,3.37441616]
[1673458971328,16.17658211,1329.0,1328.9,3.37441616]
[1673458971537,15.0489,1329.0,1328.9,3.37441616]
[1673458971753,16.17658909,1329.0,1328.9,3.37441616]
[1673458972061,16.17658104,1329.0,1328.9,3.37441616]
[1673458972384,15.0489,1329.0,1328.9,3.37441616]
[1673458977804,15.0489,1329.0,1328.9,4.49671903]
[1673458978060,8.15434,1329.1,1328.9,7.34776434]
[1673458978384,29.55362971,1329.2,1328.9,7.34776434]
[1673458978385,29.60862443,1329.2,1329.1,1.05408558]
[1673458978535,10.90782443,1329.2,1329.1,1.05408558]
[1673458983921,9.21536473,1329.2,1329.1,1.05408558]
[1673458984135,10.90782443,1329.2,1329.1,1.05408558]
[1673458986946,10.34342443,1329.2,1329.1,1.05408558]
[1673458987492,17.86690443,1329.2,1329.1,1.05408558]
[1673458987993,17.86690443,1329.2,1328.9,24.07376244]
[1673458988202,1.12759472,1329.1,1328.9,22.95145957]
[1673458988547,11.65153472,1329.1,1328.9,15.42666957]
[1673458988858,11.65153472,1329.1,1328.9,7.25266957]
[1673458989533,8.65153472,1329.1,1328.9,7.25266957]
[1673458989694,7.52394,1329.1,1328.9,8.37497244]
[1673458990109,25.45655443,1329.2,1328.9,15.89994244]
[1673458990346,17.86690443,1329.2,1328.9,15.89994244]
[1673458990724,10.34342443,1329.2,1328.9,27.54509412]
[1673458990980,10.34342443,1329.2,1328.9,23.42496244]
[1673458992242,10.34342443,1329.2,1329.0,1.86683235]
[1673458992667,10.34342443,1329.2,1329.0,3.23694453]
[1673458992892,10.34342443,1329.2,1329.0,1.37011218]
[1673458993248,10.34342443,1329.2,1329.0,3.69887878]
[1673458998033,17.86701443,1329.2,1329.0,3.69887878]
[1673458998243,17.86701443,1329.2,1329.0,1.37011218]
[1673458998681,16.17455473,1329.2,1329.0,1.37011218]
[1673458999289,17.86701443,1329.2,1329.0,1.37011218]
[1673459001291,16.17455473,1329.2,1329.0,1.37011218]
[1673459002007,17.86701443,1329.2,1329.0,1.37011218]
[1673459004953,10.34342443,1329.2,1329.0,1.37011218]
[1673459009023,1.12759472,1329.1,1329.0,1.37011218]
[1673459009339,1.12759472,1329.1,1329.0,6.31817589]
[1673459009556,1.12759472,1329.1,1329.0,6.41217449]
[1673459016808,1.12759472,1329.1,1329.0,7.53447736]
[1673459017194,1.12759472,1329.1,1329.0,6.41217449]
[1673459018248,1.12862116,1329.1,1329.0,6.41217449]
[1673459018462,11.53851733,1329.2,1329.0,6.41217449]
[1673459018674,1.12862067,1329.1,1329.0,4.54535838]
[1673459019001,1.12861525,1329.1,1329.0,6.31817468]
[1673459019194,11.53851733,1329.2,1329.0,6.41217328]
[1673459019405,2.25723001,1329.1,1329.0,4.54535838]
[1673459019632,2.25722922,1329.1,1329.0,6.31817413]
[1673459019845,1.12861489,1329.1,1329.0,13.93662273]
[1673459020034,2.25722965,1329.1,1329.0,13.93662273]
[1673459020246,2.25722945,1329.1,1329.0,15.0589256]
[1673459020486,1.12861489,1329.1,1329.0,13.93662273]
[1673459020698,2.25723234,1329.1,1329.0,6.41217273]
[1673459020873,1.12861489,1329.1,1329.0,6.41217273]
[1673459021079,2.25722972,1329.1,1329.0,6.41217273]
[1673459021289,1.12861489,1329.1,1329.0,7.5344756]
[1673459021499,2.25723203,1329.1,1329.0,6.41217273]
[1673459021725,1.12861489,1329.1,1329.0,6.41217273]
[1673459022691,2.25723228,1329.1,1329.0,6.41217273]
[1673459022868,1.12861489,1329.1,1329.0,6.41217273]
[1673459023332,2.25725046,1329.1,1329.0,6.41217273]
[1673459023501,1.12861489,1329.1,1329.0,6.41217273]
[1673459024372,2.25723387,1329.1,1329.0,7.5344756]
[1673459024546,1.12861489,1329.1,1329.0,7.5344756]
[1673459024757,2.25723392,1329.1,1329.0,7.5344756]
[1673459024998,2.25723493,1329.1,1329.0,6.41217273]
[1673459025167,2.25723491,1329.1,1329.0,6.41217273]
[1673459025376,1.12861489,1329.1,1329.0,6.41217273]
[1673459025641,2.25723483,1329.1,1329.0,6.41217273]
[1673459025826,1.12861489,1329.1,1329.0,6.41217273]
[1673459026032,1.12861489,1329.1,1329.0,7.5344756]
[1673459026296,2.25721419,1329.1,1329.0,7.5344756]
[1673459026478,1.12861489,1329.1,1329.0,7.5344756]
[1673459027159,2.25722135,1329.1,1329.0,7.5344756]
[1673459027370,1.12861489,1329.1,1329.0,7.5344756]
[1673459027582,2.25722157,1329.1,1329.0,7.5344756]
[1673459027833,1.12861489,1329.1,1329.0,7.5344756]
[1673459028051,2.25721447,1329.1,1329.0,6.41217273]
[1673459028361,1.12861489,1329.1,1329.0,6.41217273]
[1673459028753,2.25721473,1329.1,1329.0,6.41217273]
[1673459028955,1.12861489,1329.1,1329.0,6.41217273]
[1673459029165,2.25720994,1329.1,1329.0,6.41217273]
[1673459029377,1.12861489,1329.1,1329.0,6.41217273]
[1673459029593,2.25722356,1329.1,1329.0,6.41217273]
[1673459029944,2.25728183,1329.1,1329.0,6.41217273]
[1673459030104,1.12861489,1329.1,1329.0,3.33092513]
[1673459030313,2.25727314,1329.1,1329.0,3.23692653]
[1673459030537,1.12861489,1329.1,1329.0,3.23692653]
[1673459030744,2.25727324,1329.1,1329.0,3.23692653]
[1673459030987,11.47364831,1329.1,1329.0,3.23692653]
[1673459031184,12.47754698,1329.1,1329.0,1.36627294]
[1673459031370,11.91316584,1329.1,1329.0,1.36627294]
[1673459031593,12.47751579,1329.1,1329.0,1.36627294]
[1673459031798,10.78447348,1329.1,1329.0,3.23319183]
[1673459032114,12.47756979,1329.1,1329.0,1.36627294]
[1673459032325,35.44891548,1329.1,1329.0,1.36627294]
[1673459032685,36.56881521,1329.1,1329.0,1.36627294]
[1673459034049,33.75623337,1329.1,1329.0,1.36627294]
[1673459034268,29.7918911,1329.1,1329.0,1.36627294]
[1673459034408,33.75764913,1329.1,1329.0,1.36627294]
[1673459034622,29.7918911,1329.1,1329.0,1.36627294]
[1673459035925,31.4831331,1329.1,1329.0,1.36627294]
[1673459036140,31.48313245,1329.1,1329.0,1.36627294]
[1673459036396,39.24643797,1329.1,1329.0,1.36627294]
[1673459036585,33.58955174,1329.1,1329.0,1.36627294]
[1673459036915,42.97530155,1329.1,1328.8,20.085674]
[1673459037127,37.44023023,1328.9,1328.8,20.085674]
[1673459037283,53.63820115,1328.9,1328.8,20.085674]
[1673459037497,55.22114091,1328.9,1328.8,20.085674]
[1673459037708,55.97264231,1328.9,1328.8,20.085674]
[1673459037953,55.22114091,1328.9,1328.8,0.0939986]
[1673459038172,55.22114091,1328.9,1328.4,1.16529375]
[1673459038173,54.09826501,1328.9,1328.4,1.16529375]
[1673459038340,9.22971,1328.6,1328.5,1.86743013]
[1673459038550,15.3340235,1328.6,1328.5,1.86743013]
[1673459038829,22.6673235,1328.6,1328.5,1.86743013]
[1673459039390,22.6673235,1328.6,1328.4,20.12866488]
[1673459040288,15.1406135,1328.6,1328.4,20.12866488]
[1673459040502,22.6673235,1328.6,1328.4,20.12866488]
[1673459041424,15.1406135,1328.6,1328.4,20.12866488]
[1673459042702,4.703,1328.5,1328.4,20.12866488]
[1673459043013,27.28484,1328.5,1328.4,20.12866488]
[1673459043882,19.75756,1328.5,1328.4,20.12866488]
[1673459044069,16.75756,1328.5,1328.4,20.12866488]
[1673459044432,15.05456,1328.5,1328.4,20.12866488]
[1673459046697,22.58184,1328.5,1328.4,20.12866488]
[1673459049212,23.87497977,1328.5,1328.4,20.12866488]
[1673459051176,25.56497977,1328.5,1328.4,20.12866488]
[1673459051370,25.56497977,1328.5,1328.4,0.13698948]
[1673459051589,25.56497977,1328.5,1328.4,0.04299088]
[1673459052583,33.32132339,1328.5,1328.4,0.04299088]
[1673459052751,35.58602339,1328.5,1328.4,0.04299088]
[1673459053386,33.88602339,1328.5,1328.4,0.04299088]
[1673459055368,29.92734041,1328.5,1328.4,0.04299088]
[1673459056310,33.88674955,1328.5,1328.4,0.04299088]
[1673459059043,33.88674955,1328.5,1328.4,0.03992051]
[1673459060310,41.41402955,1328.5,1328.4,0.03992051]
[1673459060947,44.95222451,1328.5,1328.4,0.03992051]
[1673459061714,44.95422451,1328.5,1328.4,0.03992051]
[1673459061907,44.95222451,1328.5,1328.4,0.03992051]
[1673459062969,47.67348174,1328.5,1328.4,5.1e-07]
[1673459065919,44.13528678,1328.5,1328.4,5.1e-07]
[1673459066139,44.13181296,1328.5,1328.4,5.1e-07]
[1673459066445,47.67012889,1328.5,1328.4,5.1e-07]
[1673459067285,42.69246252,1328.5,1328.4,5.1e-07]
[1673459067498,39.12465959,1328.5,1328.4,5.1e-07]
[1673459067657,37.42165959,1328.5,1328.4,5.1e-07]
[1673459067867,22.3677672,1328.5,1328.4,5.1e-07]
[1673459068230,18.40762252,1328.5,1328.4,5.1e-07]
[1673459068446,25.93490252,1328.5,1328.4,5.1e-07]
[1673459069496,6.05236064,1328.5,1328.4,5.1e-07]
[1673459070194,13.57964064,1328.5,1328.4,5.1e-07]
[1673459070554,30.82635435,1328.6,1328.4,5.1e-07]
[1673459070555,46.44533435,1328.6,1328.4,5.1e-07]
[1673459070718,7.52728,1328.5,1328.4,5.1e-07]
[1673459070925,32.09666064,1328.6,1328.5,1.99216714]
[1673459070926,18.5835,1328.6,1328.5,1.99216714]
[1673459071124,15.05344,1328.6,1328.5,1.99216714]
[1673459071327,22.58017,1328.6,1328.5,1.99216714]
[1673459075056,7.52671,1328.6,1328.5,1.99216714]
[1673459077687,15.05342,1328.6,1328.5,1.99216714]
[1673459079247,22.58013,1328.6,1328.5,1.99216714]
[1673459080053,7.52671,1328.6,1328.5,1.99216714]
[1673459080302,6.40612208,1328.6,1328.5,1.99216714]
[1673459080690,8.71886413,1328.7,1328.5,2.19138391]
[1673459080903,8.65286413,1328.7,1328.5,2.19138391]
[1673459081113,16.17927413,1328.7,1328.5,2.19138391]
[1673459081543,16.17927413,1328.7,1328.5,0.19921677]
[1673459081752,16.17927413,1328.7,1328.4,5.1e-07]
[1673459081964,16.17927413,1328.7,1328.4,1.86758556]
[1673459082207,16.17927413,1328.7,1328.4,5.1e-07]
[1673459082365,16.17927413,1328.7,1328.4,1.86758336]
[1673459083266,16.17927413,1328.7,1328.4,5.1e-07]
[1673459083571,23.70568413,1328.7,1328.4,5.1e-07]
[1673459086207,25.39539007,1328.7,1328.4,5.1e-07]
[1673459088995,15.05456,1328.5,1328.4,5.1e-07]
[1673459089205,22.58184,1328.5,1328.4,5.1e-07]
[1673459089661,22.58384,1328.5,1328.4,5.1e-07]
[1673459089879,22.58184,1328.5,1328.4,5.1e-07]
[1673459091001,15.05456,1328.5,1328.4,5.1e-07]
[1673459098083,7.52728,1328.5,1328.4,5.1e-07]
[1673459099734,15.12024,1328.6,1328.4,5.1e-07]
[1673459099953,16.22220258,1328.7,1328.6,1.99198531]
[1673459099954,0.066,1328.7,1328.6,1.99198531]
[1673459100275,10.90630007,1328.8,1328.6,1.99198531]
[1673459100276,10.90640007,1328.8,1328.6,1.99198531]
[1673459100492,3.38067007,1328.8,1328.6,2.19118384]
[1673459100806,1.69096413,1328.8,1328.6,2.19118384]
[1673459101172,1.12646413,1328.7,1328.6,2.19118384]
[1673459101877,27.89747594,1328.8,1328.6,2.19118384]
[1673459101878,18.49796007,1328.8,1328.6,2.19118384]
[1673459102022,18.43196007,1328.8,1328.6,2.19118384]
[1673459102686,25.95788007,1328.8,1328.6,2.19118384]
[1673459103488,1.12646413,1328.7,1328.6,2.19118384]
[1673459103943,8.65261413,1328.7,1328.6,2.19118384]
[1673459106012,1.12646413,1328.7,1328.6,2.19118384]
[1673459107704,19.62815356,1328.8,1328.6,24.77131384]
[1673459107705,1.75696413,1328.8,1328.6,24.77131384]
[1673459107898,1.12646413,1328.8,1328.6,17.33860244]
[1673459108103,1.12646413,1328.8,1328.6,9.81189244]
[1673459108319,10.34182007,1328.8,1328.6,2.28518244]
[1673459108529,17.86747007,1328.8,1328.6,2.19118384]
[1673459109190,10.34182007,1328.8,1328.6,2.19118384]
[1673459109382,10.34175007,1328.8,1328.6,2.19118384]
[1673459111053,1.12646413,1328.7,1328.6,2.19118384]
[1673459111304,8.65261413,1328.7,1328.6,2.19118384]
[1673459112558,1.12646413,1328.7,1328.6,2.19118384]
[1673459112891,8.65261413,1328.7,1328.6,2.19118384]
[1673459113066,1.12646413,1328.7,1328.6,2.19118384]
[1673459113620,17.93333007,1328.8,1328.6,2.19118384]
[1673459113834,17.86733007,1328.8,1328.6,1.99198531]
[1673459114545,8.65204413,1328.8,1328.6,1.99198531]
[1673459114974,10.34175007,1328.8,1328.6,1.99198531]
[1673459115521,8.65204413,1328.8,1328.6,1.99198531]
[1673459126084,8.65204413,1328.8,1328.6,9.51868531]
[1673459126085,1.12646413,1328.8,1328.6,9.51868531]
[1673459126337,1.12646413,1328.8,1328.6,9.61268391]
[1673459126547,8.65214413,1328.8,1328.6,2.08598391]
[1673459126759,8.65214413,1328.8,1328.6,1.99198531]
[1673459127037,16.17782413,1328.8,1328.6,1.99198531]
[1673459127732,10.34185007,1328.8,1328.6,1.99198531]
[1673459127886,8.65214413,1328.8,1328.6,1.99198531]
[1673459128343,1.12646413,1328.8,1328.6,1.99198531]
[1673459128780,8.65208413,1328.8,1328.6,1.99198531]